bitfinex-derivatives/quotes_ETHF0:USTF0_20250331
["timestamp","ask_amount","ask_price","bid_price","bid_amount"]
[1743408858012,2.58639,1804.0,1803.9,1.10879]
[1743408858213,1.4776,1804.0,1803.9,1.10879]
[1743408858412,2.58633,1804.0,1803.9,1.10879]
[1743408858820,1.10879,1803.9,1803.8,1.1088]
[1743408859124,2.55339,1803.9,1803.8,1.1088]
[1743408859426,1.4446,1803.9,1803.8,1.1088]
[1743408859618,1.4446,1803.9,1803.8,2.6266]
[1743408859819,1.10878,1804.0,1803.9,1.10876]
[1743408860014,1.10878,1804.0,1803.9,2.62656]
[1743408860219,1.4446,1804.1,1803.9,2.62656]
[1743408860418,2.55332,1804.1,1804.0,2.62653]
[1743408860814,2.55332,1804.1,1804.0,1.5178]
[1743408862428,1.10885,1803.8,1803.7,2.57818219]
[1743408862722,1.10885,1803.8,1803.7,1.46930219]
[1743408862919,1.10885,1803.8,1803.7,2.57822219]
[1743408863834,1.10885,1803.8,1803.7,4.08482219]
[1743408865818,2.49144,1803.9,1803.8,1.10885]
[1743408866024,2.49144,1803.9,1803.8,2.52735]
[1743408866629,1.10878,1804.0,1803.9,1.10872]
[1743408866928,17.8111896,1804.1,1804.0,1.10873]
[1743408867128,18.9198596,1804.1,1804.0,5.02763]
[1743408869027,1.10867,1804.1,1804.0,5.02763]
[1743408870129,1.10867,1804.1,1804.0,1.81983]
[1743408871635,1.10866,1804.2,1804.1,1.10861]
[1743408871837,1.10866,1804.2,1804.1,3.22141]
[1743408872336,2.48596,1804.2,1804.1,3.22141]
[1743408874932,2.48596,1804.2,1804.1,3.22147]
[1743408876132,1.10866,1804.2,1804.1,3.22147]
[1743408876438,2.52786,1804.2,1804.1,3.22147]
[1743408876835,2.52786,1804.2,1804.1,2.1128]
[1743408877037,1.10885,1803.8,1803.7,1.11720219]
[1743408877234,1.10885,1803.8,1803.7,1.83460219]
[1743408878240,1.10885,1803.8,1803.7,3.25750219]
[1743408878540,1.10885,1803.8,1803.7,0.00830219]
[1743408878939,3.25555,1803.8,1803.7,0.00830219]
[1743408879141,3.69375,1803.8,1803.7,0.00830219]
[1743408880242,3.25555,1803.8,1803.7,0.00830219]
[1743408880746,3.25555,1803.8,1803.7,1.39690219]
[1743408881042,2.52805,1803.8,1803.7,1.39690219]
[1743408883848,1.10885,1803.8,1803.7,2.10860219]
[1743408884441,1.10885,1803.8,1803.7,3.21749219]
[1743408885648,2.55284,1803.9,1803.8,1.10885]
[1743408885846,2.55284,1803.9,1803.8,3.22235]
[1743408886350,2.55279,1803.9,1803.8,3.22235]
[1743408886549,1.10879,1803.9,1803.8,3.22235]
[1743408886736,1.10877,1804.0,1803.9,1.10872]
[1743408886940,1.10872,1804.1,1804.0,1.1087]
[1743408887146,1.10872,1804.1,1804.0,1.8651]
[1743408888152,1.10872,1804.1,1804.0,0.7564]
[1743408888445,1.10873,1804.0,1803.9,1.3756]
[1743408888652,2.55903,1804.0,1803.9,1.3756]
[1743408889352,2.55903,1804.0,1803.9,2.48439]
[1743408889749,1.10872,1804.1,1804.0,1.1087]
[1743408889948,1.10872,1804.1,1804.0,2.4802]
[1743408890143,6.60193,1804.2,1804.1,1.10867]
[1743408890451,2.55893,1804.2,1804.1,2.48017]
[1743408891250,2.55893,1804.2,1804.1,1.3715]
[1743408891752,1.4503,1804.2,1803.9,1.85526]
[1743408892050,2.62417,1804.1,1804.0,1.4194]
[1743408892551,2.62417,1804.1,1804.0,2.52813]
[1743408893443,2.62417,1804.1,1804.0,1.4194]
[1743408898255,1.10879,1803.9,1803.8,5.05451]
[1743408899756,1.10879,1803.9,1803.8,6.42861]
[1743408899955,1.10876,1804.0,1803.9,1.10879]
[1743408900155,1.10876,1804.0,1803.9,2.48289]
[1743408901352,4.21838,1804.1,1804.0,1.10873]
[1743408901353,2.55539,1804.1,1804.0,1.10873]
[1743408901552,1.10869,1804.1,1804.0,3.20393]
[1743408902248,1.1086,1804.3,1804.1,1.10867]
[1743408902452,1.4686,1804.4,1804.2,2.1505]
[1743408902653,1.4686,1804.4,1804.2,0.7509]
[1743408902654,1.10855,1804.3,1804.2,0.7509]
[1743408903345,2.57715,1804.3,1804.2,1.85951]
[1743408903550,2.57715,1804.3,1804.2,0.7509]
[1743408903953,2.57715,1804.3,1804.2,1.85951]
[1743408904353,2.57715,1804.3,1804.2,0.7509]
[1743408904552,1.10867,1804.1,1804.0,1.10871]
[1743408904752,1.10867,1804.1,1804.0,1.80401]
[1743408905359,1.10867,1804.1,1804.0,0.6953]
[1743408905750,1.10867,1804.1,1803.7,2.78054219]
[1743408905751,5.5125,1804.1,1803.7,0.00830219]
[1743408905949,1.10885,1803.8,1803.7,0.00830219]
[1743408906561,1.10885,1803.8,1803.7,1.11722219]
[1743408906958,1.4715,1803.9,1803.8,1.10885]
[1743408907152,21.76997551,1804.1,1803.7,0.00830219]
[1743408907357,1.10882,1803.9,1803.8,1.1088]
[1743408907558,6.66306,1804.0,1803.9,1.10879]
[1743408907752,21.76997551,1804.1,1804.0,1.10873]
[1743408907964,22.87864551,1804.1,1804.0,1.10873]
[1743408908860,22.87864551,1804.1,1803.9,0.7232]
[1743408908861,1.10873,1804.0,1803.9,0.7232]
[1743408909063,1.10873,1804.0,1803.9,1.83199]
[1743408909264,22.87868551,1804.1,1804.0,1.10873]
[1743408909461,21.76997551,1804.1,1804.0,1.10873]
[1743408909653,21.76997551,1804.1,1804.0,4.31653]
[1743408909855,22.87864551,1804.1,1804.0,4.31653]
[1743408913465,22.87864551,1804.1,1804.0,5.06493]
[1743408913769,21.76997551,1804.1,1804.0,5.06493]
[1743408913966,22.87864551,1804.1,1804.0,5.06493]
[1743408914361,21.76997551,1804.1,1804.0,5.06493]
[1743408915585,22.87864551,1804.1,1804.0,5.06493]
[1743408915786,21.76997551,1804.1,1804.0,5.06493]
[1743408916488,22.87864551,1804.1,1804.0,5.06493]
[1743408916679,21.76997551,1804.1,1804.0,5.06493]
[1743408916879,22.87864551,1804.1,1804.0,5.06493]
[1743408918087,22.87864551,1804.1,1804.0,1.85713]
[1743408918283,2.7719,1804.0,1803.7,0.00830219]
[1743408918486,1.10885,1803.8,1803.7,0.00830219]
[1743408918681,2.61945,1803.9,1803.8,1.10885]
[1743408918881,4.31658,1804.0,1803.7,0.00830219]
[1743408919185,1.10885,1803.8,1803.7,1.11717219]
[1743408919386,2.51913,1803.9,1803.8,1.10885]
[1743408919590,28.00093551,1804.1,1803.8,1.10885]
[1743408919591,21.76997551,1804.1,1804.0,1.10873]
[1743408919780,24.28897551,1804.1,1804.0,1.10873]
[1743408920384,24.28897551,1804.1,1804.0,2.51803]
[1743408920691,21.76997551,1804.1,1804.0,2.51803]
[1743408920889,22.87864551,1804.1,1804.0,2.51803]
[1743408921085,21.76997551,1804.1,1804.0,5.72583]
[1743408923488,22.87850551,1804.4,1804.3,1.10855]
[1743408924093,22.87850551,1804.4,1804.3,1.80695]
[1743408924688,22.87850551,1804.4,1804.3,3.28185]
[1743408924689,21.76997551,1804.4,1804.3,3.28185]
[1743408926785,21.76997551,1804.4,1804.2,4.31638]
[1743408927081,2.56255,1804.3,1804.2,4.31641]
[1743408927286,2.56255,1804.3,1804.2,5.81861]
[1743408927890,22.87846551,1804.4,1804.3,1.10855]
[1743408928090,24.32716551,1804.4,1804.3,2.53445]
[1743408929293,1.10855,1804.3,1804.2,4.31639]
[1743408929493,2.55725,1804.3,1804.2,4.31639]
[1743408929893,1.4487,1804.3,1804.2,5.74229]
[1743408930188,2.55725,1804.3,1804.2,5.74229]
[1743408930489,1.4487,1804.3,1804.2,5.74229]
[1743408930692,22.87846551,1804.4,1804.3,1.10855]
[1743408930892,23.19017551,1804.4,1804.3,2.59765]
[1743408931492,24.29866551,1804.4,1804.3,2.59765]
[1743408934386,21.76997551,1804.4,1804.3,2.59765]
[1743408935301,22.87846551,1804.4,1804.3,2.59765]
[1743408935492,21.76997551,1804.4,1804.2,3.2078]
[1743408935801,1.10879,1803.9,1803.8,4.31661]
[1743408936394,1.10879,1803.9,1803.8,5.78551]
[1743408937797,2.48099,1803.9,1803.8,5.78551]
[1743408939501,1.10885,1803.8,1803.7,1.80757219]
[1743408939802,2.48105,1803.8,1803.7,1.80757219]
[1743408940000,2.48105,1803.8,1803.7,3.25257219]
[1743408940299,1.3722,1803.8,1803.7,3.25257219]
[1743408940490,4.31651,1804.1,1804.0,1.10873]
[1743408940689,5.77101,1804.1,1804.0,1.10873]
[1743408940891,1.10873,1804.0,1803.9,2.54084]
[1743408941104,2.56323,1804.0,1803.9,2.54084]
[1743408941499,3.2078,1804.3,1804.0,2.77183]
[1743408941799,1.4545,1804.3,1804.2,1.10861]
[1743408941996,22.87851551,1804.4,1804.2,1.10861]
[1743408942201,22.87851551,1804.4,1804.3,2.54065]
[1743408942202,24.33296551,1804.4,1804.3,2.54065]
[1743408943304,23.22447551,1804.4,1804.3,2.54065]
[1743408944206,21.76997551,1804.4,1804.3,2.54065]
[1743408946004,22.87846551,1804.4,1804.3,2.54065]
[1743408946195,24.34686551,1804.4,1804.3,2.54065]
[1743408946391,26.00971551,1804.4,1804.1,1.86583]
[1743408946602,1.10861,1804.2,1804.1,1.86583]
[1743408946997,2.57701,1804.2,1804.1,1.86583]
[1743408947196,1.4684,1804.2,1804.1,3.27373]
[1743408947803,1.4684,1804.2,1804.1,3.99133]
[1743408948407,2.57701,1804.2,1804.1,3.99133]
[1743408948607,1.4684,1804.2,1804.1,3.99133]
[1743408949008,2.57701,1804.2,1804.1,3.99133]
[1743408950308,1.4684,1804.2,1804.1,3.99133]
[1743408950700,1.10858,1804.3,1804.2,1.10861]
[1743408950900,2.56698,1804.3,1804.2,2.51741]
[1743408952711,2.56698,1804.3,1804.2,1.4088]
[1743408953010,2.56698,1804.3,1804.2,2.51741]
[1743408953310,2.56698,1804.3,1804.2,1.4088]
[1743408953506,1.4584,1804.3,1803.9,3.2078]
[1743408953814,1.10885,1803.8,1803.7,0.00830219]
[1743408954112,1.10885,1803.8,1803.7,1.11722219]
[1743408954604,1.10885,1803.8,1803.7,0.00830219]
[1743408954811,2.53435,1803.8,1803.7,1.50860219]
[1743408955409,2.53435,1803.8,1803.7,2.61752219]
[1743408955610,2.53435,1803.8,1803.7,1.50860219]
[1743408956414,4.034,1804.0,1803.9,1.10879]
[1743408956611,1.10876,1804.0,1803.9,1.10873]
[1743408957214,22.87873551,1804.0,1803.9,2.57103]
[1743408957908,22.87873551,1804.0,1803.9,1.4623]
[1743408958113,1.10879,1803.9,1803.8,3.25425]
[1743408958313,2.53489,1803.9,1803.8,3.25425]
[1743408958918,2.53489,1803.9,1803.8,2.1454]
[1743408959108,2.53489,1803.9,1803.8,3.25425]
[1743408959511,2.53489,1803.9,1803.8,2.1454]
[1743408959919,2.53489,1803.9,1803.8,3.25425]
[1743408960218,2.53489,1803.9,1803.8,2.1454]
[1743408960522,2.53489,1803.9,1803.8,3.25425]
[1743408961021,1.10885,1803.8,1803.7,0.00830219]
[1743408961217,2.49315,1803.8,1803.7,0.00830219]
[1743408961518,2.49315,1803.8,1803.7,1.11722219]
[1743408961712,2.49315,1803.8,1803.7,2.59992219]
[1743408962517,2.49315,1803.8,1803.7,0.00830219]
[1743408962919,2.49315,1803.8,1803.7,1.11722219]
[1743408963118,2.49315,1803.8,1803.7,2.59992219]
[1743408963523,2.49315,1803.8,1803.7,1.49100219]
[1743408964227,4.5921,1803.8,1803.3,4.31694]
[1743408964423,1.10904,1803.5,1803.4,1.4827]
[1743408964614,1.53820483,1803.5,1803.4,1.4827]
[1743408964816,1.10904,1803.5,1803.4,1.4827]
[1743408965019,1.10937,1803.0,1802.9,3.2078]
[1743408965328,1.10926,1803.2,1803.1,1.10922]
[1743408965916,1.10922,1803.2,1803.1,2.61153]
[1743408966426,1.10922,1803.2,1803.1,2.61158]
[1743408967929,2.51541219,1803.3,1803.2,1.10922]
[1743408968128,2.51541219,1803.3,1803.2,1.3854]
[1743408971827,5.72321219,1803.3,1803.2,1.3854]
[1743408972027,1.10922,1803.2,1803.1,0.7444]
[1743408972223,2.54962,1803.2,1803.1,0.7444]
[1743408972418,3.27002,1803.2,1803.1,0.7444]
[1743408973341,1.10928,1803.1,1803.0,1.4563]
[1743408973628,2.54968,1803.1,1803.0,1.4563]
[1743408974032,1.10935,1803.0,1802.9,0.6904]
[1743408974328,2.49715,1803.0,1802.9,0.6904]
[1743408974627,1.10941,1802.9,1802.8,1.42900219]
[1743408974823,2.49721,1802.9,1802.8,0.74070219]
[1743408975024,2.49721,1802.9,1802.8,2.16140219]
[1743408975734,2.49721,1802.9,1802.8,3.27087219]
[1743408976234,2.49721,1802.9,1802.8,2.16140219]
[1743408977730,1.10964,1802.6,1802.5,1.10965]
[1743408977928,1.10964,1802.6,1802.5,1.86515]
[1743408978434,1.10952,1802.8,1802.7,1.10948]
[1743408978833,8.35024,1802.9,1802.8,1.10947]
[1743408979030,9.80724,1802.9,1802.8,1.10947]
[1743408979529,9.80724,1802.9,1802.7,1.394]
[1743408979530,1.10953,1802.7,1802.6,1.86414219]
[1743408979733,1.10953,1802.7,1802.6,3.26744219]
[1743408982343,1.10953,1802.7,1802.6,2.15790219]
[1743408983036,2.52943,1802.7,1802.6,2.15790219]
[1743408983438,2.52943,1802.7,1802.6,0.75460219]
[1743408983739,1.10978,1802.3,1802.2,2.61474]
[1743408984041,1.10978,1802.3,1802.2,3.99694]
[1743408984239,1.10978,1802.3,1802.2,2.1306]
[1743408984736,1.10978,1802.3,1802.2,0.7484]
[1743408985434,1.53291936,1802.3,1802.2,0.7484]
[1743408986344,1.10984,1802.2,1802.1,1.39050219]
[1743408986536,3.31894,1802.2,1802.1,0.00830219]
[1743408986734,7.35194,1802.2,1802.1,0.00830219]
[1743408988137,4.32592219,1802.3,1802.2,1.10984]
[1743408988437,0.00830219,1802.3,1802.2,3.22734]
[1743408988635,1.11808219,1802.3,1802.2,3.22734]
[1743408989432,0.00830219,1802.3,1802.2,3.22734]
[1743408989640,1.1097,1802.5,1802.4,1.10972]
[1743408990841,8.6276,1802.6,1802.5,1.10965]
[1743408990842,9.74554219,1802.6,1802.5,1.10965]
[1743408991047,1.10969,1802.5,1802.4,1.10966]
[1743408991240,1.10972,1802.4,1802.3,2.47882]
[1743408992440,1.10972,1802.4,1802.3,2.47888]
[1743408993144,1.10972,1802.4,1802.3,1.3691]
[1743408993546,1.10972,1802.4,1802.3,2.47888]
[1743408993747,1.10972,1802.4,1802.3,1.3691]
[1743408994844,1.10972,1802.4,1802.3,2.47888]
[1743408995437,2.4965,1802.5,1802.4,1.10972]
[1743408995746,2.4965,1802.5,1802.4,2.59562]
[1743408995948,2.4965,1802.5,1802.4,1.4859]
[1743408996340,1.1097,1802.5,1802.4,2.59562]
[1743408997839,0.00830219,1802.6,1802.5,1.10965]
[1743408998040,1.11789219,1802.6,1802.5,2.47725]
[1743408999741,0.00830219,1802.6,1802.5,2.47725]
[1743408999946,0.00830219,1802.6,1802.5,5.68505]
[1743409001346,1.11789219,1802.6,1802.5,2.47725]
[1743409002546,1.11789219,1802.6,1802.5,1.3676]
[1743409002742,1.11789219,1802.6,1802.5,2.47725]
[1743409003752,0.00830219,1802.6,1802.5,2.47725]
[1743409003952,1.11789219,1802.6,1802.5,2.47725]
[1743409009155,1.11789219,1802.6,1802.5,1.3676]
[1743409009547,1.10972,1802.4,1802.3,3.2078]
[1743409009746,1.10972,1802.4,1802.3,4.621]
[1743409010045,2.58352,1802.4,1802.3,1.4132]
[1743409010451,1.10978,1802.3,1802.2,0.7105]
[1743409010652,2.53898,1802.3,1802.2,0.7105]
[1743409011052,1.10984,1802.2,1802.1,0.00830219]
[1743409011349,2.53904,1802.2,1802.1,0.00830219]
[1743409011554,2.53904,1802.2,1802.1,2.63390219]
[1743409013861,2.53904,1802.2,1802.1,1.52400219]
[1743409014654,2.53904,1802.2,1802.1,0.00830219]
[1743409015151,5.74684,1802.2,1802.1,0.00830219]
[1743409016263,1.11019,1801.7,1801.6,4.31795]
[1743409016558,1.11019,1801.7,1801.6,5.02005]
[1743409016764,1.11014,1801.8,1801.7,1.11011]
[1743409016963,1.11015,1801.7,1801.6,4.31796]
[1743409017265,2.56185,1801.7,1801.6,4.31796]
[1743409017560,6.80492,1802.0,1801.7,1.1101]
[1743409017756,1.11012,1801.8,1801.7,1.1101]
[1743409017962,3.2078,1802.2,1801.8,2.77521]
[1743409018263,1.10996,1802.0,1801.9,1.81208]
[1743409018465,1.10996,1802.0,1801.9,3.27238]
[1743409018762,6.59164,1802.1,1802.0,1.10996]
[1743409018966,6.59164,1802.1,1802.0,2.1857]
[1743409019165,6.59164,1802.1,1802.0,3.29566]
[1743409019665,1.10994,1802.1,1802.0,3.29566]
[1743409020163,1.4101,1802.1,1802.0,3.29566]
[1743409020359,1.10984,1802.2,1802.1,1.1099]
[1743409020559,1.10981,1802.3,1802.2,1.10978]
[1743409020763,1.10981,1802.3,1802.2,1.83758]
[1743409020965,1.10981,1802.3,1802.2,0.7278]
[1743409021165,1.10984,1802.2,1802.1,1.3717]
[1743409021467,1.10984,1802.2,1802.1,2.4816]
[1743409021859,1.10984,1802.2,1802.1,1.3717]
[1743409023369,2.57004,1802.2,1802.1,1.3717]
[1743409024465,1.1099,1802.1,1802.0,0.7254]
[1743409024661,2.5701,1802.1,1802.0,2.2294]
[1743409025166,2.5701,1802.1,1802.0,3.33936]
[1743409025571,1.10974,1802.4,1802.3,1.10978]
[1743409025764,1.10982,1802.3,1802.2,1.10979]
[1743409025966,1.10982,1802.3,1802.2,1.83189]
[1743409026365,2.57247,1802.4,1802.3,1.10978]
[1743409026569,2.57247,1802.4,1802.3,1.3947]
[1743409027464,2.57247,1802.4,1802.3,2.50448]
[1743409027670,8.34651,1802.5,1802.4,1.10972]
[1743409027864,8.34651,1802.5,1802.4,3.20772]
[1743409028270,8.34651,1802.5,1802.4,2.098]
[1743409028773,1.47100219,1802.6,1802.5,1.10965]
[1743409028978,2.58059219,1802.6,1802.5,2.1043]
[1743409029166,2.58059219,1802.6,1802.5,1.4045]
[1743409030268,2.58059219,1802.6,1802.5,2.51415]
[1743409031272,0.00830219,1802.6,1802.5,2.51415]
[1743409031663,1.11789219,1802.6,1802.5,2.51415]
[1743409032378,22.8878677,1802.6,1802.5,2.51415]
[1743409035971,21.7782777,1802.6,1802.5,2.51415]
[1743409036476,22.8878677,1802.6,1802.5,2.51415]
[1743409037678,21.7782777,1802.6,1802.5,2.51415]
[1743409037879,22.8878677,1802.6,1802.5,2.51415]
[1743409039680,21.7782777,1802.6,1802.5,5.01415]
[1743409039980,21.73676676,1802.6,1802.5,5.01415]
[1743409040684,1.10938,1803.0,1802.8,1.10947]
[1743409040871,2.52804,1803.1,1803.0,1.10935]
[1743409041067,2.5363657,1803.1,1803.0,1.10935]
[1743409041272,2.5363657,1803.1,1803.0,2.51615]
[1743409041483,0.0083257,1803.1,1803.0,2.51615]
[1743409043583,1.1176057,1803.1,1803.0,2.51615]
[1743409043769,1.10935,1803.0,1802.9,0.7525]
[1743409043969,1.10947,1802.8,1802.7,1.1178357]
[1743409044170,1.10947,1802.8,1802.7,2.4882357]
[1743409044580,2.57556,1802.9,1802.8,1.10947]
[1743409044781,2.57556,1802.9,1802.8,1.3704]
[1743409045174,1.10947,1802.8,1802.7,0.0083257]
[1743409045381,2.57557,1802.8,1802.7,1.1178557]
[1743409045583,2.57557,1802.8,1802.7,2.4882557]
[1743409047072,2.57557,1802.8,1802.7,1.3787257]
[1743409047276,2.57557,1802.8,1802.7,2.4882557]
[1743409048587,0.6871,1803.0,1802.7,1.3787257]
[1743409048883,1.4864,1802.9,1802.8,2.58387]
[1743409049085,1.10938,1803.0,1802.9,1.10935]
[1743409049388,2.59578,1803.0,1802.9,1.86435]
[1743409049782,2.59578,1803.0,1802.9,0.755]
[1743409051387,1.10947,1802.8,1802.7,0.0083257]
[1743409051684,1.10947,1802.8,1802.7,1.8593957]
[1743409052184,1.10947,1802.8,1802.7,5.0671957]
[1743409052883,1.10947,1802.8,1802.7,0.0083257]
[1743409053079,5.82557,1802.8,1802.7,0.0083257]
[1743409053387,1.10972,1802.4,1802.3,1.10976]
[1743409053590,1.10978,1802.3,1802.2,1.83999]
[1743409054182,1.10996,1802.1,1801.9,3.2078]
[1743409054380,1.10996,1802.0,1801.9,3.2078]
[1743409054581,2.59026,1802.0,1801.9,4.31782]
[1743409055387,1.4803,1802.0,1801.9,4.31782]
[1743409055586,0.0083257,1802.2,1802.1,1.1099]
[1743409056385,1.1181657,1802.2,1802.1,1.1099]
[1743409056694,0.0083257,1802.2,1802.1,1.1099]
[1743409057488,0.0083257,1802.2,1802.1,4.3177]
[1743409058084,1.10994,1802.1,1802.0,1.10992]
[1743409058582,2.58214,1802.1,1802.0,1.81032]
[1743409058786,2.58214,1802.1,1802.0,0.7004]
[1743409059179,1.4722,1802.1,1801.8,1.8485657]
[1743409059382,1.11002,1801.9,1801.8,2.5489657]
[1743409059785,1.11002,1801.9,1801.8,3.9414657]
[1743409060091,1.11002,1801.9,1801.8,2.8314257]
[1743409060287,1.11002,1801.9,1801.8,0.0083257]
[1743409060590,1.83612,1801.9,1801.8,0.0083257]
[1743409060786,3.30802,1801.9,1801.8,0.0083257]
[1743409061485,2.58192,1801.9,1801.8,0.0083257]
[1743409061681,2.58192,1801.9,1801.8,0.7349257]
[1743409061884,2.58192,1801.9,1801.8,0.0083257]
[1743409062387,1.11021,1801.6,1801.5,3.2078]
[1743409062582,1.1102,1801.7,1801.5,4.6594]
[1743409062787,1.3903,1801.7,1801.6,2.56178]
[1743409063592,3.2078,1802.0,1801.6,1.4516]
[1743409063792,1.11011,1801.8,1801.7,2.1851]
[1743409064995,1.11021,1801.6,1801.5,0.73906617]
[1743409065191,1.11021,1801.6,1801.5,2.18976617]
[1743409066191,1.11021,1801.6,1801.5,1.45626617]
[1743409066386,2.50491,1801.6,1801.5,1.45626617]
[1743409070490,2.50491,1801.6,1801.5,0.00556617]
[1743409071592,5.00491,1801.6,1801.5,6.17e-06]
[1743409071797,1.11045,1801.2,1801.1,0.7447]
[1743409072094,1.11045,1801.2,1801.1,2.1112]
[1743409072391,1.11052,1801.1,1801.0,0.7256]
[1743409072595,1.11052,1801.1,1800.9,1.3665]
[1743409072596,1.11058,1801.0,1800.9,1.3665]
[1743409073194,2.58788,1801.0,1800.9,1.3665]
[1743409073899,1.11058,1801.0,1800.9,2.47709]
[1743409074086,1.11058,1801.0,1800.9,1.3665]
[1743409074286,1.11058,1801.0,1800.9,2.47714]
[1743409074487,1.1188857,1801.1,1801.0,1.11058]
[1743409074699,0.0083257,1801.1,1801.0,1.84528]
[1743409075086,1.1188457,1801.1,1801.0,1.84528]
[1743409075290,1.11058,1801.0,1800.9,2.61844]
[1743409076803,1.11058,1801.0,1800.9,1.5078]
[1743409077100,1.11058,1801.0,1800.9,2.61844]
[1743409078402,1.4373257,1801.1,1801.0,1.11058]
[1743409078403,0.0083257,1801.1,1801.0,1.11058]
[1743409078605,1.1188457,1801.1,1801.0,2.60368]
[1743409079605,1.1188457,1801.1,1801.0,1.4931]
[1743409079905,0.0083257,1801.1,1801.0,2.60368]
[1743409080104,0.0083257,1801.1,1801.0,5.81148]
[1743409082404,1.11047,1801.3,1801.2,1.1104]
[1743409082606,1.11052,1801.2,1801.1,2.2029]
[1743409083404,2.60272,1801.2,1801.1,3.31342]
[1743409084099,2.60272,1801.2,1801.1,2.2029]
[1743409085505,2.60272,1801.2,1801.1,1.4948]
[1743409085811,1.11052,1801.1,1801.0,0.0083257]
[1743409086007,2.60272,1801.1,1801.0,0.0083257]
[1743409087906,1.1107,1800.8,1800.7,1.4707]
[1743409088106,1.1107,1800.8,1800.7,2.9878]
[1743409088411,1.1107,1800.8,1800.7,4.09856]
[1743409088602,2.4807,1800.8,1800.7,2.9878]
[1743409090004,2.4807,1800.8,1800.7,2.273]
[1743409090207,1.11082,1800.6,1800.5,0.7589]
[1743409090409,1.11082,1800.6,1800.5,2.2522]
[1743409090604,1.11082,1800.6,1800.5,3.36309]
[1743409090910,1.11082,1800.6,1800.5,2.2522]
[1743409091609,1.11082,1800.6,1800.5,3.36309]
[1743409092211,1.11082,1800.6,1800.5,2.2522]
[1743409092413,1.11082,1800.6,1800.5,3.36309]
[1743409092615,1.11082,1800.6,1800.5,2.2522]
[1743409093012,1.11082,1800.6,1800.5,3.36309]
[1743409094002,1.11066,1800.9,1800.8,1.1107]
[1743409094216,1.11073,1800.8,1800.7,1.1107]
[1743409094410,1.11073,1800.8,1800.7,3.2014]
[1743409096012,1.11073,1800.8,1800.7,2.0907]
[1743409096320,1.11069,1800.9,1800.8,1.11065]
[1743409096515,1.11069,1800.9,1800.8,3.30395]
[1743409097613,1.11069,1800.9,1800.8,2.1933]
[1743409097815,1.1107,1800.8,1800.7,0.7025]
[1743409098010,2.6157,1800.8,1800.7,2.1484]
[1743409098921,2.6157,1800.8,1800.7,3.25916]
[1743409099629,1.11063,1801.0,1800.9,1.11059]
[1743409099932,1.11076,1800.8,1800.7,1.11072]
[1743409100128,1.11068,1800.9,1800.8,1.11065]
[1743409101329,1.11068,1800.9,1800.8,2.53735]
[1743409101724,7.2288,1801.1,1800.8,4.20331]
[1743409101925,2.59817,1801.2,1800.9,2.1319]
[1743409102126,1.11058,1801.1,1801.0,2.49456]
[1743409103432,2.5982,1801.2,1801.1,1.11052]
[1743409103631,2.5982,1801.2,1801.1,3.18432]
[1743409103933,1.11055,1801.1,1801.0,1.11058]
[1743409104134,2.59825,1801.1,1801.0,2.49458]
[1743409104334,1.11055,1801.1,1801.0,2.49458]
[1743409105330,1.5175,1801.2,1800.6,3.2078]
[1743409105531,1.11089,1800.5,1800.4,4.31872]
[1743409105831,1.11095,1800.4,1800.3,1.427]
[1743409106423,1.11129,1799.9,1799.8,3.2078]
[1743409106634,5.98565,1800.1,1799.7,1.11135]
[1743409106935,1.1195657,1800.0,1799.6,6.72647]
[1743409107131,1.1195657,1800.0,1799.7,1.4642]
[1743409107331,1.1195257,1800.0,1799.8,1.11127]
[1743409107528,1.1195257,1800.0,1799.9,1.4642]
[1743409107730,2.5632257,1800.0,1799.9,1.4642]
[1743409107936,2.5632257,1800.0,1799.9,2.57546]
[1743409108233,2.5632257,1800.0,1799.9,1.4642]
[1743409108627,2.5632257,1800.0,1799.9,2.57546]
[1743409108830,0.0083257,1800.0,1799.9,2.57546]
[1743409109331,1.1195257,1800.0,1799.9,1.4642]
[1743409109528,2.5632257,1800.0,1799.9,1.4642]
[1743409109727,1.11132,1799.8,1799.7,2.62325]
[1743409109930,1.4520257,1800.0,1799.7,1.5119]
[1743409110124,1.4520257,1800.0,1799.8,0.7175]
[1743409110341,1.4520257,1800.0,1799.9,1.5119]
[1743409110636,2.5632457,1800.0,1799.9,1.5119]
[1743409111136,2.5632257,1800.0,1799.9,2.62316]
[1743409111436,0.0083257,1800.0,1799.9,2.62316]
[1743409113534,1.1195257,1800.0,1799.9,2.62316]
[1743409119231,0.0083257,1800.0,1799.9,2.62316]
[1743409119436,26.03984868,1800.3,1800.2,1.11107]
[1743409120340,5.70461,1800.3,1800.2,1.11107]
[1743409121141,1.11107,1800.2,1800.1,2.6144057]
[1743409121336,2.49687,1800.2,1800.1,2.6144057]
[1743409122345,2.49687,1800.2,1800.1,0.0083257]
[1743409122535,3.19837,1800.2,1800.1,0.0083257]
[1743409122735,1.11126,1799.9,1799.8,2.60628]
[1743409123139,6.56394,1800.0,1799.9,1.11126]
[1743409123340,6.56394,1800.0,1799.9,2.59266]
[1743409126452,6.56394,1800.0,1799.9,1.4814]
[1743409126746,6.56394,1800.0,1799.9,2.59266]
[1743409127246,4.31885,1800.3,1800.2,1.11107]
[1743409127447,5.13001,1800.3,1800.2,1.11107]
[1743409127647,1.11107,1800.3,1800.2,1.11105]
[1743409127949,1.11107,1800.2,1800.1,3.26969]
[1743409128245,2.59157,1800.2,1800.1,1.86003]
[1743409128445,1.4805,1800.2,1800.1,1.86003]
[1743409128844,2.59157,1800.2,1800.1,1.86003]
[1743409129349,1.4805,1800.2,1800.1,1.86003]
[1743409129544,2.59157,1800.2,1800.1,1.86003]
[1743409130644,1.4805,1800.2,1800.1,1.86003]
[1743409130847,2.59157,1800.2,1800.1,1.86003]